[Event "Titled Tuesday Blitz February 22 Early 2022"]
[White "Jaracz, Pawel"]
[Black "Sadhwani, Raunak"]
[WhiteFideId "1102222"]
[BlackFideId "35093487"]
[WhiteElo "2429"]
[BlackElo "2616"]
[Result "0-1"]
[Round "06"]
[TimeControl "180+1"]
[Date "2022.02.22"]
[WhiteClock "0:00:08"]
[BlackClock "0:00:47"]

1. e4 {[%clk 0:03:00]}  e5 {[%clk 0:02:59]} 2. Nf3 {[%clk 0:02:57]}  Nc6 {[%clk 0:03:00]} 3. Bb5 {[%clk 0:02:57]}  Nge7 {[%clk 0:03:00]} 4. Nc3 {[%clk 0:02:55]}  Ng6 {[%clk 0:03:00]} 5. h4 {[%clk 0:02:55]}  Be7 {[%clk 0:03:00]} 6. h5 {[%clk 0:02:52]}  Nh4 {[%clk 0:03:00]} 7. Nxh4 {[%clk 0:02:35]}  Bxh4 {[%clk 0:03:01]} 8. Bxc6 {[%clk 0:02:26]}  dxc6 {[%clk 0:02:57]} 9. d3 {[%clk 0:02:23]}  h6 {[%clk 0:02:54]} 10. Be3 {[%clk 0:02:23]}  Bf6 {[%clk 0:02:54]} 11. Qd2 {[%clk 0:02:19]}  Be6 {[%clk 0:02:51]} 12. O-O-O {[%clk 0:02:18]}  Qe7 {[%clk 0:02:52]} 13. f3 {[%clk 0:01:43]}  O-O-O {[%clk 0:02:51]} 14. Qf2 {[%clk 0:01:41]}  b6 {[%clk 0:02:51]} 15. g3 {[%clk 0:01:38]}  Kb7 {[%clk 0:02:46]} 16. Kb1 {[%clk 0:01:33]}  Rd7 {[%clk 0:02:36]} 17. Ne2 {[%clk 0:01:32]}  Rhd8 {[%clk 0:02:33]} 18. Bc1 {[%clk 0:01:16]}  c5 {[%clk 0:02:28]} 19. Nc3 {[%clk 0:01:10]}  c4 {[%clk 0:02:26]} 20. dxc4 {[%clk 0:01:06]}  Bxc4 {[%clk 0:02:25]} 21. Rxd7 {[%clk 0:01:05]}  Rxd7 {[%clk 0:02:26]} 22. b3 {[%clk 0:01:05]}  Be6 {[%clk 0:02:26]} 23. Rd1 {[%clk 0:00:58]}  c6 {[%clk 0:02:05]} 24. Rxd7+ {[%clk 0:00:56]}  Qxd7 {[%clk 0:02:06]} 25. g4 {[%clk 0:00:53]}  Be7 {[%clk 0:02:04]} 26. Qd2 {[%clk 0:00:49]}  Qxd2 {[%clk 0:01:50]} 27. Bxd2 {[%clk 0:00:50]}  Kc7 {[%clk 0:01:49]} 28. Ne2 {[%clk 0:00:49]}  Bf8 {[%clk 0:01:50]} 29. Bc3 {[%clk 0:00:47]}  Kd6 {[%clk 0:01:43]} 30. Nc1 {[%clk 0:00:47]}  g6 {[%clk 0:01:23]} 31. Nd3 {[%clk 0:00:47]}  Bg7 {[%clk 0:01:23]} 32. hxg6 {[%clk 0:00:21]}  fxg6 {[%clk 0:01:23]} 33. f4 {[%clk 0:00:21]}  Bxg4 {[%clk 0:01:17]} 34. Bxe5+ {[%clk 0:00:20]}  Bxe5 {[%clk 0:01:15]} 35. Nxe5 {[%clk 0:00:21]}  Bh5 {[%clk 0:01:07]} 36. Kb2 {[%clk 0:00:20]}  g5 {[%clk 0:01:03]} 37. Nc4+ {[%clk 0:00:20]}  Ke6 {[%clk 0:01:02]} 38. fxg5 {[%clk 0:00:18]}  hxg5 {[%clk 0:01:03]} 39. Kc3 {[%clk 0:00:18]}  Be2 {[%clk 0:00:50]} 40. Nd2 {[%clk 0:00:08]}  Ke5 {[%clk 0:00:47]} 0-1


[Site "https://www.chess.com"]

[Event "Titled Tuesday Blitz February 22 Early 2022"]
[White "Jeet, Jain"]
[Black "Zemerov, Vladimir"]
[WhiteFideId "5073022"]
[BlackFideId "4111583"]
[WhiteElo "2085"]
[BlackElo "2277"]
[Result "1-0"]
[Round "06"]
[TimeControl "180+1"]
[Date "2022.02.22"]
[WhiteClock "0:01:53"]
[BlackClock "0:01:48"]

1. e4 {[%clk 0:03:00]}  c5 {[%clk 0:02:59]} 2. Nf3 {[%clk 0:03:00]}  e6 {[%clk 0:02:59]} 3. d4 {[%clk 0:03:00]}  cxd4 {[%clk 0:02:59]} 4. Nxd4 {[%clk 0:03:01]}  Nc6 {[%clk 0:02:55]} 5. Be3 {[%clk 0:02:59]}  Qc7 {[%clk 0:02:52]} 6. Nc3 {[%clk 0:02:58]}  a6 {[%clk 0:02:52]} 7. a4 {[%clk 0:02:58]}  Bb4 {[%clk 0:02:52]} 8. Bd3 {[%clk 0:02:56]}  Nf6 {[%clk 0:02:52]} 9. O-O {[%clk 0:02:56]}  O-O {[%clk 0:02:48]} 10. h3 {[%clk 0:02:53]}  Ne5 {[%clk 0:02:43]} 11. f4 {[%clk 0:02:46]}  Nxd3 {[%clk 0:02:43]} 12. Qxd3 {[%clk 0:02:42]}  Bxc3 {[%clk 0:02:42]} 13. bxc3 {[%clk 0:02:42]}  d6 {[%clk 0:02:42]} 14. f5 {[%clk 0:02:37]}  e5 {[%clk 0:02:42]} 15. Ne2 {[%clk 0:02:34]}  Rd8 {[%clk 0:02:36]} 16. c4 {[%clk 0:02:34]}  Bd7 {[%clk 0:02:30]} 17. g4 {[%clk 0:02:22]}  Rac8 {[%clk 0:02:25]} 18. g5 {[%clk 0:02:23]}  Nh5 {[%clk 0:02:20]} 19. c5 {[%clk 0:02:17]}  dxc5 {[%clk 0:02:19]} 20. Nc3 {[%clk 0:02:11]}  c4 {[%clk 0:02:12]} 21. Qd1 {[%clk 0:02:10]}  Bc6 {[%clk 0:02:09]} 22. Qxh5 {[%clk 0:02:09]}  b5 {[%clk 0:02:07]} 23. axb5 {[%clk 0:02:02]}  axb5 {[%clk 0:02:07]} 24. f6 {[%clk 0:01:54]}  b4 {[%clk 0:02:00]} 25. Ra7 {[%clk 0:01:53]}  Qd6 {[%clk 0:01:51]} 26. Qxf7+ {[%clk 0:01:52]}  Kh8 {[%clk 0:01:48]} 27. Qxg7# {[%clk 0:01:53]} 1-0


[Site "https://www.chess.com"]

[Event "Titled Tuesday Blitz February 22 Early 2022"]
[White "Jobava, Baadur"]
[Black "Lazavik, Denis"]
[WhiteFideId "13601520"]
[BlackFideId "13515110"]
[WhiteElo "2617"]
[BlackElo "2436"]
[Result "1-0"]
[Round "06"]
[TimeControl "180+1"]
[Date "2022.02.22"]
[WhiteClock "0:00:32"]
[BlackClock "0:00:11"]

1. e4 {[%clk 0:03:00]}  e5 {[%clk 0:03:00]} 2. Nf3 {[%clk 0:03:01]}  Nc6 {[%clk 0:03:00]} 3. Bc4 {[%clk 0:03:01]}  Bc5 {[%clk 0:03:00]} 4. c3 {[%clk 0:03:01]}  Nf6 {[%clk 0:03:00]} 5. d3 {[%clk 0:03:01]}  d6 {[%clk 0:03:00]} 6. b4 {[%clk 0:03:02]}  Bb6 {[%clk 0:03:00]} 7. O-O {[%clk 0:03:02]}  a5 {[%clk 0:02:52]} 8. b5 {[%clk 0:03:01]}  Ne7 {[%clk 0:02:52]} 9. Nbd2 {[%clk 0:03:01]}  Ng6 {[%clk 0:02:50]} 10. Bb3 {[%clk 0:03:01]}  c6 {[%clk 0:02:45]} 11. bxc6 {[%clk 0:03:01]}  bxc6 {[%clk 0:02:45]} 12. Nc4 {[%clk 0:03:02]}  Bc7 {[%clk 0:02:46]} 13. Bg5 {[%clk 0:02:57]}  h6 {[%clk 0:02:40]} 14. Bxf6 {[%clk 0:02:56]}  Qxf6 {[%clk 0:02:41]} 15. Ne3 {[%clk 0:02:56]}  O-O {[%clk 0:02:39]} 16. Rb1 {[%clk 0:02:55]}  Rb8 {[%clk 0:02:37]} 17. g3 {[%clk 0:02:53]}  Bh3 {[%clk 0:02:36]} 18. Re1 {[%clk 0:02:53]}  Bb6 {[%clk 0:02:30]} 19. Nd2 {[%clk 0:02:42]}  Bc5 {[%clk 0:02:17]} 20. Qh5 {[%clk 0:02:37]}  Be6 {[%clk 0:02:08]} 21. Kg2 {[%clk 0:02:34]}  Ne7 {[%clk 0:01:30]} 22. h4 {[%clk 0:02:26]}  Kh7 {[%clk 0:01:24]} 23. a4 {[%clk 0:01:45]}  Qg6 {[%clk 0:01:13]} 24. Qxg6+ {[%clk 0:01:44]}  Kxg6 {[%clk 0:01:14]} 25. Bxe6 {[%clk 0:01:34]}  fxe6 {[%clk 0:01:15]} 26. Ndc4 {[%clk 0:01:31]}  Kf7 {[%clk 0:00:56]} 27. Nxa5 {[%clk 0:01:18]}  Ra8 {[%clk 0:00:32]} 28. Nb7 {[%clk 0:01:18]}  Rxa4 {[%clk 0:00:32]} 29. Nxc5 {[%clk 0:01:18]}  dxc5 {[%clk 0:00:33]} 30. Rb7 {[%clk 0:01:13]}  Ra2 {[%clk 0:00:28]} 31. Ng4 {[%clk 0:01:09]}  h5 {[%clk 0:00:21]} 32. Nxe5+ {[%clk 0:01:06]}  Kg8 {[%clk 0:00:20]} 33. Rf1 {[%clk 0:01:05]}  Re8 {[%clk 0:00:21]} 34. Rfb1 {[%clk 0:00:55]}  Rf8 {[%clk 0:00:20]} 35. R1b2 {[%clk 0:00:56]}  Rxb2 {[%clk 0:00:19]} 36. Rxb2 {[%clk 0:00:57]}  Rd8 {[%clk 0:00:19]} 37. Rb7 {[%clk 0:00:55]}  Re8 {[%clk 0:00:12]} 38. Rc7 {[%clk 0:00:51]}  Kf8 {[%clk 0:00:12]} 39. Kf3 {[%clk 0:00:48]}  Ra8 {[%clk 0:00:09]} 40. Nxc6 {[%clk 0:00:48]}  Ng6 {[%clk 0:00:09]} 41. Ke3 {[%clk 0:00:41]}  Ra3 {[%clk 0:00:08]} 42. Nd8 {[%clk 0:00:36]}  Rxc3 {[%clk 0:00:04]} 43. Nxe6+ {[%clk 0:00:36]}  Ke8 {[%clk 0:00:05]} 44. Nxg7+ {[%clk 0:00:36]}  Kd8 {[%clk 0:00:05]} 45. Ne6+ {[%clk 0:00:37]}  Ke8 {[%clk 0:00:06]} 46. Rxc5 {[%clk 0:00:37]}  Ra3 {[%clk 0:00:06]} 47. Rxh5 {[%clk 0:00:36]}  Ke7 {[%clk 0:00:07]} 48. Nf4 {[%clk 0:00:37]}  Nf8 {[%clk 0:00:07]} 49. Nd5+ {[%clk 0:00:34]}  Kf7 {[%clk 0:00:07]} 50. Rf5+ {[%clk 0:00:34]}  Kg7 {[%clk 0:00:08]} 51. Rxf8 {[%clk 0:00:34]}  Kxf8 {[%clk 0:00:08]} 52. f4 {[%clk 0:00:34]}  Kf7 {[%clk 0:00:09]} 53. g4 {[%clk 0:00:35]}  Ra1 {[%clk 0:00:10]} 54. h5 {[%clk 0:00:35]}  Rh1 {[%clk 0:00:11]} 55. Kd4 {[%clk 0:00:33]}  Rh4 {[%clk 0:00:10]} 56. Ne3 {[%clk 0:00:34]}  Rh3 {[%clk 0:00:11]} 57. Nf5 {[%clk 0:00:33]}  Rh1 {[%clk 0:00:10]} 58. Ke5 {[%clk 0:00:32]}  Rg1 {[%clk 0:00:10]} 59. d4 {[%clk 0:00:32]}  Ke8 {[%clk 0:00:08]} 60. g5 {[%clk 0:00:32]}  Rh1 {[%clk 0:00:08]} 61. h6 {[%clk 0:00:32]}  Kf7 {[%clk 0:00:09]} 62. d5 {[%clk 0:00:32]}  Kg6 {[%clk 0:00:10]} 63. d6 {[%clk 0:00:32]}  Rd1 {[%clk 0:00:10]} 64. Ke6 {[%clk 0:00:32]}  Re1 {[%clk 0:00:11]} 65. e5 {[%clk 0:00:32]}  Ra1 {[%clk 0:00:11]} 66. d7 {[%clk 0:00:32]}  Ra8 {[%clk 0:00:11]} 67. Ne7+ {[%clk 0:00:32]}  Kh5 {[%clk 0:00:11]} 68. Nc8 {[%clk 0:00:32]}  Ra6+ {[%clk 0:00:11]} 69. Ke7 {[%clk 0:00:32]} 1-0


[Site "https://www.chess.com"]

[Event "Titled Tuesday Blitz February 22 Early 2022"]
[White "Kamsky, Gata"]
[Black "Krysa, Leandro"]
[WhiteFideId "2000024"]
[BlackFideId "116807"]
[WhiteElo "2645"]
[BlackElo "2490"]
[Result "1/2-1/2"]
[Round "06"]
[TimeControl "180+1"]
[Date "2022.02.22"]
[WhiteClock "0:00:03"]
[BlackClock "0:00:03"]

1. e4 {[%clk 0:03:00]}  e5 {[%clk 0:02:58]} 2. Nf3 {[%clk 0:03:00]}  Nf6 {[%clk 0:02:59]} 3. Nxe5 {[%clk 0:02:58]}  d6 {[%clk 0:02:59]} 4. Nf3 {[%clk 0:02:58]}  Nxe4 {[%clk 0:02:59]} 5. Qe2 {[%clk 0:02:58]}  Qe7 {[%clk 0:02:58]} 6. d3 {[%clk 0:02:59]}  Nf6 {[%clk 0:02:56]} 7. Qxe7+ {[%clk 0:02:57]}  Bxe7 {[%clk 0:02:56]} 8. Nc3 {[%clk 0:02:57]}  c6 {[%clk 0:02:56]} 9. Bf4 {[%clk 0:02:54]}  O-O {[%clk 0:02:54]} 10. h3 {[%clk 0:02:54]}  d5 {[%clk 0:02:52]} 11. a3 {[%clk 0:02:52]}  h6 {[%clk 0:02:51]} 12. Kd2 {[%clk 0:02:46]}  Nbd7 {[%clk 0:02:40]} 13. Re1 {[%clk 0:02:42]}  Re8 {[%clk 0:02:39]} 14. d4 {[%clk 0:02:40]}  b5 {[%clk 0:02:30]} 15. Bd3 {[%clk 0:02:19]}  Bb7 {[%clk 0:02:23]} 16. Ne5 {[%clk 0:02:16]}  Nxe5 {[%clk 0:02:21]} 17. Bxe5 {[%clk 0:02:15]}  Nd7 {[%clk 0:02:19]} 18. Bf4 {[%clk 0:02:13]}  Nb6 {[%clk 0:02:12]} 19. Kc1 {[%clk 0:02:08]}  a5 {[%clk 0:02:07]} 20. Re2 {[%clk 0:01:54]}  Bc8 {[%clk 0:01:43]} 21. Rhe1 {[%clk 0:01:52]}  Be6 {[%clk 0:01:43]} 22. Bf5 {[%clk 0:01:22]}  b4 {[%clk 0:01:24]} 23. Bxe6 {[%clk 0:01:19]}  bxc3 {[%clk 0:01:23]} 24. Bd7 {[%clk 0:00:59]}  cxb2+ {[%clk 0:01:05]} 25. Kb1 {[%clk 0:00:58]}  Nxd7 {[%clk 0:00:53]} 26. Rxe7 {[%clk 0:00:58]}  Rxe7 {[%clk 0:00:46]} 27. Rxe7 {[%clk 0:00:57]}  Nb6 {[%clk 0:00:47]} 28. Kxb2 {[%clk 0:00:48]}  a4 {[%clk 0:00:38]} 29. Kc3 {[%clk 0:00:47]}  Nc4 {[%clk 0:00:26]} 30. Kb4 {[%clk 0:00:45]}  g5 {[%clk 0:00:19]} 31. Bg3 {[%clk 0:00:43]}  Kg7 {[%clk 0:00:19]} 32. h4 {[%clk 0:00:35]}  Kg6 {[%clk 0:00:18]} 33. Rc7 {[%clk 0:00:29]}  Ra6 {[%clk 0:00:17]} 34. Rb7 {[%clk 0:00:21]}  f6 {[%clk 0:00:15]} 35. hxg5 {[%clk 0:00:20]}  hxg5 {[%clk 0:00:15]} 36. Bb8 {[%clk 0:00:19]}  Ra8 {[%clk 0:00:13]} 37. Ba7 {[%clk 0:00:17]}  Re8 {[%clk 0:00:11]} 38. Kxa4 {[%clk 0:00:15]}  Re2 {[%clk 0:00:11]} 39. Bc5 {[%clk 0:00:13]}  Rxc2 {[%clk 0:00:10]} 40. Rc7 {[%clk 0:00:11]}  Rxf2 {[%clk 0:00:10]} 41. Rxc6 {[%clk 0:00:12]}  Rxg2 {[%clk 0:00:10]} 42. Be7 {[%clk 0:00:11]}  Rf2 {[%clk 0:00:10]} 43. Kb4 {[%clk 0:00:11]}  g4 {[%clk 0:00:10]} 44. Bd6 {[%clk 0:00:05]}  Kf5 {[%clk 0:00:05]} 45. Bc7 {[%clk 0:00:04]}  Rb2+ {[%clk 0:00:04]} 46. Kc5 {[%clk 0:00:04]}  Nxa3 {[%clk 0:00:04]} 47. Kxd5 {[%clk 0:00:04]}  Nb5 {[%clk 0:00:04]} 48. Bb8 {[%clk 0:00:03]}  Nc3+ {[%clk 0:00:03]} 49. Rxc3 {[%clk 0:00:02]}  Rxb8 {[%clk 0:00:04]} 50. Rc7 {[%clk 0:00:01]}  Kf4 {[%clk 0:00:04]} 51. Rg7 {[%clk 0:00:01]}  f5 {[%clk 0:00:04]} 52. Ke6 {[%clk 0:00:01]}  Re8+ {[%clk 0:00:03]} 53. Kf6 {[%clk 0:00:02]}  Rf8+ {[%clk 0:00:03]} 54. Ke6 {[%clk 0:00:02]}  Ra8 {[%clk 0:00:04]} 55. d5 {[%clk 0:00:02]}  g3 {[%clk 0:00:03]} 56. d6 {[%clk 0:00:02]}  Ra6 {[%clk 0:00:03]} 57. Ke7 {[%clk 0:00:02]}  Kf3 {[%clk 0:00:02]} 58. d7 {[%clk 0:00:02]}  Ra7 {[%clk 0:00:03]} 59. Ke6 {[%clk 0:00:02]}  Rxd7 {[%clk 0:00:03]} 60. Rxd7 {[%clk 0:00:01]}  g2 {[%clk 0:00:03]} 61. Rg7 {[%clk 0:00:01]}  f4 {[%clk 0:00:03]} 62. Kf5 {[%clk 0:00:02]}  Kf2 {[%clk 0:00:03]} 63. Rxg2+ {[%clk 0:00:02]}  Kxg2 {[%clk 0:00:03]} 64. Kxf4 {[%clk 0:00:03]} 1/2-1/2


[Site "https://www.chess.com"]

[Event "Titled Tuesday Blitz February 22 Early 2022"]
[White "Karavaeva, Olga"]
[Black "Shuvalov, Evgenij"]
[WhiteFideId "4124111"]
[BlackFideId "4187237"]
[WhiteElo "2105"]
[BlackElo "2119"]
[Result "0-1"]
[Round "06"]
[TimeControl "180+1"]
[Date "2022.02.22"]
[WhiteClock "0:00:03"]
[BlackClock "0:00:03"]

1. c4 {[%clk 0:03:00]}  c6 {[%clk 0:02:50]} 2. e4 {[%clk 0:03:00]}  d5 {[%clk 0:02:49]} 3. exd5 {[%clk 0:03:00]}  cxd5 {[%clk 0:02:50]} 4. d4 {[%clk 0:03:01]}  Nf6 {[%clk 0:02:49]} 5. Nc3 {[%clk 0:03:01]}  g6 {[%clk 0:02:47]} 6. cxd5 {[%clk 0:02:56]}  Bg7 {[%clk 0:02:47]} 7. Bc4 {[%clk 0:02:54]}  O-O {[%clk 0:02:45]} 8. Nge2 {[%clk 0:02:54]}  Nbd7 {[%clk 0:02:45]} 9. Bb3 {[%clk 0:02:50]}  Nb6 {[%clk 0:02:44]} 10. Nf4 {[%clk 0:02:50]}  a5 {[%clk 0:02:40]} 11. a3 {[%clk 0:02:50]}  a4 {[%clk 0:02:35]} 12. Ba2 {[%clk 0:02:50]}  Ra5 {[%clk 0:02:32]} 13. O-O {[%clk 0:02:48]}  h6 {[%clk 0:02:20]} 14. h4 {[%clk 0:02:39]}  Bg4 {[%clk 0:02:15]} 15. f3 {[%clk 0:02:38]}  Bf5 {[%clk 0:02:10]} 16. Re1 {[%clk 0:02:35]}  Ra8 {[%clk 0:01:59]} 17. Bd2 {[%clk 0:02:31]}  Rc8 {[%clk 0:01:54]} 18. Rc1 {[%clk 0:02:29]}  Nc4 {[%clk 0:01:53]} 19. Nxa4 {[%clk 0:02:00]}  b5 {[%clk 0:01:46]} 20. Bxc4 {[%clk 0:01:53]}  Rxc4 {[%clk 0:01:41]} 21. Rxc4 {[%clk 0:01:46]}  bxc4 {[%clk 0:01:42]} 22. Bb4 {[%clk 0:01:36]}  Nxd5 {[%clk 0:01:31]} 23. Nxd5 {[%clk 0:01:37]}  Qxd5 {[%clk 0:01:31]} 24. Bxe7 {[%clk 0:01:33]}  Ra8 {[%clk 0:01:19]} 25. Bc5 {[%clk 0:01:22]}  Bd3 {[%clk 0:01:14]} 26. Re4 {[%clk 0:00:50]}  Bxe4 {[%clk 0:01:09]} 27. Nb6 {[%clk 0:00:49]}  Bc2 {[%clk 0:00:55]} 28. Qd2 {[%clk 0:00:42]}  Qd8 {[%clk 0:00:43]} 29. Nxa8 {[%clk 0:00:39]}  Bd3 {[%clk 0:00:43]} 30. Nb6 {[%clk 0:00:33]}  Bxd4+ {[%clk 0:00:43]} 31. Bxd4 {[%clk 0:00:34]}  Qxd4+ {[%clk 0:00:43]} 32. Qf2 {[%clk 0:00:35]}  Qe5 {[%clk 0:00:39]} 33. g3 {[%clk 0:00:25]}  g5 {[%clk 0:00:38]} 34. hxg5 {[%clk 0:00:24]}  hxg5 {[%clk 0:00:39]} 35. Kg2 {[%clk 0:00:24]}  g4 {[%clk 0:00:39]} 36. fxg4 {[%clk 0:00:20]}  Be4+ {[%clk 0:00:38]} 37. Kf1 {[%clk 0:00:19]}  Qd6 {[%clk 0:00:34]} 38. Qe3 {[%clk 0:00:13]}  Qd1+ {[%clk 0:00:32]} 39. Kf2 {[%clk 0:00:14]}  Qc2+ {[%clk 0:00:31]} 40. Ke1 {[%clk 0:00:13]}  Bd3 {[%clk 0:00:26]} 41. Qe8+ {[%clk 0:00:12]}  Kg7 {[%clk 0:00:25]} 42. Qe5+ {[%clk 0:00:12]}  Kh7 {[%clk 0:00:24]} 43. Qh5+ {[%clk 0:00:11]}  Kg8 {[%clk 0:00:23]} 44. Qg5+ {[%clk 0:00:11]}  Bg6 {[%clk 0:00:22]} 45. Qf6 {[%clk 0:00:08]}  Qd3 {[%clk 0:00:18]} 46. a4 {[%clk 0:00:07]}  Qxg3+ {[%clk 0:00:16]} 47. Kd2 {[%clk 0:00:06]}  Qd3+ {[%clk 0:00:15]} 48. Ke1 {[%clk 0:00:07]}  Qe3+ {[%clk 0:00:15]} 49. Kd1 {[%clk 0:00:05]}  Qd3+ {[%clk 0:00:12]} 50. Ke1 {[%clk 0:00:05]}  Qe4+ {[%clk 0:00:12]} 51. Kf2 {[%clk 0:00:04]}  Qc2+ {[%clk 0:00:09]} 52. Ke1 {[%clk 0:00:04]}  Qc1+ {[%clk 0:00:08]} 53. Kf2 {[%clk 0:00:04]}  Qd2+ {[%clk 0:00:08]} 54. Kg3 {[%clk 0:00:05]}  Qe3+ {[%clk 0:00:07]} 55. Kh4 {[%clk 0:00:04]}  Qh6+ {[%clk 0:00:06]} 56. Kg3 {[%clk 0:00:03]}  Qe3+ {[%clk 0:00:05]} 57. Kh4 {[%clk 0:00:02]}  Qe1+ {[%clk 0:00:05]} 58. Kh3 {[%clk 0:00:02]}  Qh1+ {[%clk 0:00:04]} 59. Kg3 {[%clk 0:00:02]}  Qg1+ {[%clk 0:00:04]} 60. Kf4 {[%clk 0:00:02]}  Qf2+ {[%clk 0:00:04]} 61. Ke5 {[%clk 0:00:03]}  Qxb2+ {[%clk 0:00:03]} 0-1


[Site "https://www.chess.com"]

[Event "Titled Tuesday Blitz February 22 Early 2022"]
[White "Kim, Sergey"]
[Black "Sargissyan, Sargis"]
[WhiteFideId "13700570"]
[BlackFideId "13303210"]
[WhiteElo "2632"]
[BlackElo "2174"]
[Result "1-0"]
[Round "06"]
[TimeControl "180+1"]
[Date "2022.02.22"]
[WhiteClock "0:00:05"]
[BlackClock "0:00:01"]

1. d4 {[%clk 0:03:00]}  Nf6 {[%clk 0:02:59]} 2. c4 {[%clk 0:03:00]}  g6 {[%clk 0:03:00]} 3. Nc3 {[%clk 0:02:59]}  Bg7 {[%clk 0:03:01]} 4. e4 {[%clk 0:02:59]}  d6 {[%clk 0:03:01]} 5. Nge2 {[%clk 0:02:59]}  O-O {[%clk 0:03:01]} 6. Ng3 {[%clk 0:02:59]}  c5 {[%clk 0:02:58]} 7. d5 {[%clk 0:02:58]}  e6 {[%clk 0:02:59]} 8. Be2 {[%clk 0:02:58]}  exd5 {[%clk 0:02:59]} 9. cxd5 {[%clk 0:02:59]}  a6 {[%clk 0:02:45]} 10. a4 {[%clk 0:02:58]}  h5 {[%clk 0:02:24]} 11. Bg5 {[%clk 0:02:55]}  Qe8 {[%clk 0:02:19]} 12. f3 {[%clk 0:02:51]}  Nbd7 {[%clk 0:02:17]} 13. O-O {[%clk 0:02:47]}  Nh7 {[%clk 0:02:18]} 14. Be3 {[%clk 0:02:39]}  h4 {[%clk 0:02:14]} 15. Nh1 {[%clk 0:02:38]}  f5 {[%clk 0:02:09]} 16. Qd2 {[%clk 0:02:37]}  Ne5 {[%clk 0:02:02]} 17. Bh6 {[%clk 0:02:30]}  Qe7 {[%clk 0:01:45]} 18. Bxg7 {[%clk 0:02:29]}  Kxg7 {[%clk 0:01:45]} 19. Nf2 {[%clk 0:02:27]}  f4 {[%clk 0:01:40]} 20. h3 {[%clk 0:02:27]}  g5 {[%clk 0:01:27]} 21. a5 {[%clk 0:02:18]}  Nf6 {[%clk 0:01:26]} 22. Na4 {[%clk 0:02:14]}  Nfd7 {[%clk 0:01:20]} 23. b4 {[%clk 0:02:09]}  cxb4 {[%clk 0:00:56]} 24. Qxb4 {[%clk 0:02:08]}  Rb8 {[%clk 0:00:54]} 25. Rac1 {[%clk 0:02:05]}  Nf6 {[%clk 0:00:50]} 26. Nb6 {[%clk 0:02:01]}  Bd7 {[%clk 0:00:46]} 27. Rc7 {[%clk 0:01:59]}  Ne8 {[%clk 0:00:46]} 28. Rc2 {[%clk 0:01:41]}  Nf6 {[%clk 0:00:45]} 29. Qd4 {[%clk 0:01:34]}  Rfd8 {[%clk 0:00:44]} 30. Rfc1 {[%clk 0:01:30]}  Kh6 {[%clk 0:00:32]} 31. Rc7 {[%clk 0:01:26]}  Ne8 {[%clk 0:00:32]} 32. R7c2 {[%clk 0:01:21]}  Kg6 {[%clk 0:00:29]} 33. Nd3 {[%clk 0:01:19]}  Nxd3 {[%clk 0:00:29]} 34. Bxd3 {[%clk 0:01:18]}  Qe5 {[%clk 0:00:27]} 35. Qf2 {[%clk 0:01:10]}  Kh6 {[%clk 0:00:15]} 36. Nc4 {[%clk 0:01:09]}  Qe7 {[%clk 0:00:15]} 37. Re1 {[%clk 0:01:07]}  Rdc8 {[%clk 0:00:13]} 38. e5 {[%clk 0:01:06]}  Ba4 {[%clk 0:00:12]} 39. Rce2 {[%clk 0:01:05]}  dxe5 {[%clk 0:00:07]} 40. Nxe5 {[%clk 0:01:03]}  Qc5 {[%clk 0:00:07]} 41. Ng4+ {[%clk 0:00:57]}  Kg7 {[%clk 0:00:07]} 42. Re7+ {[%clk 0:00:57]}  Kf8 {[%clk 0:00:07]} 43. Bg6 {[%clk 0:00:28]}  Qxf2+ {[%clk 0:00:07]} 44. Kxf2 {[%clk 0:00:27]}  Nd6 {[%clk 0:00:07]} 45. Nf6 {[%clk 0:00:22]}  Rc2+ {[%clk 0:00:07]} 46. Kg1 {[%clk 0:00:21]}  Rd2 {[%clk 0:00:06]} 47. Rh7 {[%clk 0:00:20]}  Rc8 {[%clk 0:00:02]} 48. Ne4 {[%clk 0:00:14]}  Nxe4 {[%clk 0:00:01]} 49. Bxe4 {[%clk 0:00:12]}  Rc3 {[%clk 0:00:01]} 50. Bg6 {[%clk 0:00:11]}  Re3 {[%clk 0:00:01]} 51. Rc1 {[%clk 0:00:10]}  Ree2 {[%clk 0:00:01]} 52. Rc8+ {[%clk 0:00:09]}  Be8 {[%clk 0:00:02]} 53. Rxe8+ {[%clk 0:00:08]}  Rxe8 {[%clk 0:00:02]} 54. Rh8+ {[%clk 0:00:08]}  Kg7 {[%clk 0:00:02]} 55. Rxe8 {[%clk 0:00:07]}  Kxg6 {[%clk 0:00:02]} 56. Rd8 {[%clk 0:00:07]}  Rd3 {[%clk 0:00:02]} 57. Rd7 {[%clk 0:00:05]}  Kf6 {[%clk 0:00:02]} 58. Kf2 {[%clk 0:00:06]}  Ke5 {[%clk 0:00:02]} 59. Ke2 {[%clk 0:00:06]}  Rxd5 {[%clk 0:00:02]} 60. Rxb7 {[%clk 0:00:07]}  Rc5 {[%clk 0:00:01]} 61. Rg7 {[%clk 0:00:05]} 1-0


[Site "https://www.chess.com"]